bitfinex-derivatives/quotes_SOLF0:USTF0_20260129
["timestamp","ask_amount","ask_price","bid_price","bid_amount"]
[1769646972649,7.2213,124.82,124.77,1.97245069]
[1769646972942,7.2213,124.82,124.78,1.97245069]
[1769646973339,10.63798682,124.83,124.78,1.97245069]
[1769646974544,7.221,124.82,124.78,1.97245069]
[1769646974736,10.63868682,124.82,124.77,1.97245069]
[1769646975345,10.63868682,124.82,124.78,1.97245069]
[1769646977839,3.41768682,124.82,124.78,1.97245069]
[1769646979845,3.41768682,124.82,124.77,9.19605069]
[1769646982147,3.41768682,124.82,124.77,12.75304255]
[1769646982449,7.2205,124.83,124.78,5.52944255]
[1769646982641,7.2205,124.83,124.79,1.97245069]
[1769646982842,3.41768682,124.82,124.78,1.97245069]
[1769646983043,3.41768682,124.84,124.8,1.97245069]
[1769646983245,9.19193927,124.86,124.8,1.97245069]
[1769646984352,7.2191,124.85,124.8,1.97245069]
[1769646984543,10.63678682,124.85,124.8,1.97245069]
[1769646986349,10.63678682,124.85,124.81,1.97245069]
[1769646991556,3.41768682,124.85,124.81,1.97408484]
[1769646992253,3.41768682,124.85,124.8,12.42501574]
[1769646993455,3.38673248,124.83,124.78,1.97408484]
[1769646993652,3.38673248,124.83,124.77,1.97408484]
[1769646994353,10.60703248,124.83,124.77,9.19738484]
[1769646994550,10.60703248,124.83,124.77,12.74837175]
[1769646994757,3.38673248,124.82,124.76,1.97408484]
[1769646994957,10.60763248,124.82,124.76,12.74927175]
[1769646995255,3.38673248,124.82,124.76,12.74927175]
[1769646996751,10.60773248,124.82,124.76,12.74927175]
[1769646997454,7.2214,124.81,124.76,3.55098691]
[1769647000960,3.38673248,124.8,124.75,7.2248]
[1769647001164,3.38673248,124.8,124.75,9.19888484]
[1769647004262,10.60873248,124.8,124.74,5.52507175]
[1769647004963,10.60933248,124.79,124.74,5.52507175]
[1769647005267,112.3193,124.83,124.73,1.97408484]
[1769647005268,3.38673248,124.78,124.73,1.97408484]
[1769647005670,10.60983248,124.78,124.73,1.97408484]
[1769647005967,10.60983248,124.78,124.72,12.75147175]
[1769647007169,10.60983248,124.78,124.73,1.97408484]
[1769647007669,3.38673248,124.76,124.7,10.77828691]
[1769647007972,3.38673248,124.76,124.7,5.52507175]
[1769647009463,3.38673248,124.76,124.7,3.55098691]
[1769647009664,5.36081732,124.76,124.7,3.55098691]
[1769647010475,7.225,124.75,124.7,5.52507175]
[1769647010665,7.225,124.75,124.71,1.97408484]
[1769647011169,7.225,124.75,124.7,5.52507175]
[1769647011373,10.61173248,124.75,124.7,5.52507175]
[1769647011569,10.61173248,124.75,124.7,1.97408484]
[1769647012266,3.38673248,124.73,124.64,3.55098691]
[1769647012571,3.38673248,124.72,124.66,1.97408484]
[1769647013363,10.61333248,124.72,124.66,1.97408484]
[1769647013865,3.38673248,124.72,124.66,9.20398484]
[1769647014062,3.38673248,124.72,124.64,3.55098691]
[1769647014063,3.38673248,124.72,124.67,1.97408484]
[1769647014263,3.38673248,124.72,124.68,1.97408484]
[1769647014568,3.38673248,124.75,124.71,1.97408484]
[1769647016979,3.38673248,124.75,124.72,1.97408484]
[1769647017475,10.50402303,124.77,124.72,1.97408484]
[1769647020279,3.28022303,124.77,124.73,1.97408484]
[1769647020474,3.28022303,124.79,124.75,1.97408484]
[1769647021680,3.28022303,124.82,124.77,1.97408484]
[1769647022277,3.28022303,124.82,124.78,1.97408484]
[1769647023278,10.50102303,124.82,124.78,1.97408484]
[1769647023480,3.28022303,124.82,124.76,1.97408484]
[1769647023672,10.50172303,124.81,124.75,1.97408484]
[1769647023876,3.28022303,124.8,124.75,1.97408484]
[1769647024278,3.28022303,124.8,124.76,1.97408484]
[1769647024781,10.50102303,124.83,124.78,1.97408484]
[1769647025682,10.50102303,124.83,124.77,1.97408484]
[1769647026887,10.50102303,124.83,124.78,1.97408484]
[1769647027280,10.49952303,124.85,124.8,1.97408484]
[1769647027985,3.28022303,124.85,124.81,1.97408484]
[1769647028183,7.2184,124.87,124.82,1.97408484]
[1769647028184,10.49862303,124.87,124.82,1.97408484]
[1769647028883,3.28022303,124.87,124.83,1.97408484]
[1769647030689,3.28022303,124.89,124.84,1.97408484]
[1769647030888,3.28022303,124.91,124.86,1.97408484]
[1769647031089,3.28022303,124.91,124.87,1.97408484]
[1769647031388,10.49582303,124.91,124.86,1.97408484]
[1769647031997,10.49642303,124.9,124.85,1.97408484]
[1769647032198,10.49642303,124.9,124.84,5.54014108]
[1769647032385,3.28022303,124.9,124.84,5.54014108]
[1769647032694,3.28022303,124.9,124.85,1.97408484]
[1769647033796,3.28022303,124.9,124.84,3.56605624]
[1769647033999,3.28022303,124.9,124.85,1.97408484]
[1769647034400,3.28022303,124.92,124.85,3.56605624]
[1769647034596,3.28022303,124.92,124.87,1.97408484]
[1769647034994,3.28022303,124.92,124.86,1.97408484]
[1769647035200,7.2157,124.91,124.86,1.97408484]
[1769647035700,10.49592303,124.91,124.86,1.97408484]
[1769647035901,3.28022303,124.89,124.84,1.97408484]
[1769647036102,3.28022303,124.89,124.83,5.54014108]
[1769647036794,3.28022303,124.89,124.84,1.97408484]
[1769647038202,3.28022303,124.89,124.85,1.97408484]
[1769647040104,10.49702303,124.89,124.84,1.97408484]
[1769647042309,10.49702303,124.89,124.85,1.97408484]
[1769647043405,7.2168,124.89,124.85,1.97408484]
[1769647044010,7.2168,124.89,124.84,5.54014108]
[1769647047811,10.46677847,124.89,124.84,5.54014108]
[1769647048205,10.46677847,124.89,124.84,3.56605624]
[1769647048412,10.46727847,124.88,124.83,1.97408484]
[1769647049606,3.24997847,124.88,124.83,1.97408484]
[1769647050713,3.24997847,124.88,124.84,1.97408484]
[1769647051416,3.24997847,124.88,124.83,5.53986661]
[1769647051715,3.24997847,124.88,124.83,5.53903687]
[1769647052316,3.24997847,124.88,124.83,12.75913687]
[1769647053106,7.2167,124.89,124.84,1.9732551]
[1769647054114,10.45102566,124.89,124.84,1.9732551]
[1769647055812,3.23432566,124.88,124.83,12.75913687]
[1769647056315,3.23432566,124.88,124.83,5.53903687]
[1769647058012,3.23432566,124.87,124.82,9.1939551]
[1769647060319,3.23432566,124.87,124.82,5.53903687]
[1769647060711,3.23432566,124.87,124.82,3.56578177]
[1769647061119,10.45222566,124.87,124.82,3.56578177]
[1769647061520,12.42548076,124.87,124.82,3.56578177]
[1769647061715,5.20758076,124.86,124.81,7.2213]
[1769647062217,5.20758076,124.86,124.81,10.78708177]
[1769647062421,3.23432566,124.86,124.81,10.78708177]
[1769647065426,5.20758076,124.86,124.81,10.78708177]
[1769647067029,5.20758076,124.86,124.82,7.2208]
[1769647067221,3.23432566,124.86,124.82,7.2208]
[1769647067624,3.23432566,124.86,124.81,3.56578177]
[1769647067821,10.45292566,124.86,124.81,3.56578177]
[1769647068323,10.45362566,124.85,124.8,1.9732551]
[1769647068526,12.42688076,124.85,124.79,1.9732551]
[1769647068726,12.42688076,124.85,124.78,325.41903687]
[1769647068927,12.42688076,124.85,124.79,3.56578177]
[1769647069327,5.20758076,124.85,124.79,3.56578177]
[1769647070126,5.20758076,124.87,124.81,5.53903687]
[1769647070329,5.20758076,124.89,124.83,1.9732551]
[1769647070728,3.23432566,124.89,124.84,1.9732551]
[1769647071223,10.45102566,124.89,124.84,1.9732551]
[1769647071623,3.23432566,124.88,124.84,1.9732551]
[1769647073522,3.23432566,124.88,124.83,9.1933551]
[1769647075532,10.45172566,124.88,124.83,9.1933551]
[1769647075732,10.45172566,124.88,124.83,7.2201]
[1769647076825,10.45172566,124.88,124.82,12.75983687]
[1769647078528,10.45172566,124.88,124.81,7.2213]
[1769647078529,10.7249035,124.87,124.81,7.2213]
[1769647078736,3.5065035,124.86,124.81,9.1945551]
[1769647078934,3.5065035,124.86,124.81,7.2213]
[1769647079834,3.5065035,124.86,124.81,12.58374587]
[1769647080034,3.5065035,124.86,124.82,1.9732551]
[1769647080634,3.5065035,124.86,124.81,12.58374587]
[1769647080836,7.218,124.87,124.81,12.58374587]
[1769647081036,7.218,124.87,124.82,1.9732551]
[1769647081231,7.218,124.87,124.82,5.36244587]
[1769647081535,3.5065035,124.85,124.8,1.9732551]
[1769647083036,3.5065035,124.85,124.8,9.1950551]
[1769647083037,10.7256035,124.85,124.8,9.1950551]
[1769647083333,10.7256035,124.85,124.79,5.36244587]
[1769647083529,10.7256035,124.85,124.8,1.9732551]
[1769647084126,3.5065035,124.87,124.81,1.9732551]
[1769647084830,7.2185,124.86,124.81,5.36244587]
[1769647085034,3.5065035,124.87,124.83,1.9732551]
[1769647090143,10.7245035,124.87,124.82,1.9732551]
[1769647090642,10.7245035,124.87,124.81,5.36244587]
[1769647092243,10.7245035,124.87,124.81,12.58364587]
[1769647092438,12.6970586,124.89,124.83,1.9732551]
[1769647092642,10.7238035,124.89,124.83,1.9732551]
[1769647092841,3.5065035,124.88,124.83,1.9732551]
[1769647093855,10.7240035,124.88,124.83,1.9732551]
[1769647095150,10.7240035,124.88,124.82,10.60989077]
[1769647095351,10.7240035,124.88,124.83,1.9732551]
[1769647096847,10.7231035,124.9,124.85,1.9732551]
[1769647097649,7.2168,124.89,124.85,1.9732551]
[1769647099552,3.5065035,124.9,124.85,1.9732551]
[1769647099755,3.5065035,124.9,124.86,1.9732551]
[1769647100858,10.7233035,124.89,124.84,1.9732551]
[1769647101655,3.5065035,124.88,124.83,1.9732551]
[1769647101855,3.5065035,124.87,124.81,1.9732551]
[1769647102160,10.7250035,124.86,124.8,9.1951551]
[1769647105360,10.7250035,124.86,124.81,1.9732551]
[1769647106466,7.2192,124.85,124.81,1.9732551]
[1769647107364,10.7250035,124.86,124.81,1.9732551]
[1769647108661,10.7250035,124.86,124.82,1.9732551]
[1769647109661,3.5065035,124.86,124.82,1.9732551]
[1769647109863,3.27713152,124.88,124.84,1.9732551]
[1769647110967,7.2168,124.89,124.85,1.9732551]
[1769647111354,3.27713152,124.9,124.85,1.9732551]
[1769647111558,3.27713152,124.9,124.86,1.9732551]
[1769647111768,10.49333152,124.9,124.86,1.9732551]
[1769647113663,10.49333152,124.9,124.86,1.97255625]
[1769647113864,3.27713152,124.9,124.86,1.97255625]
[1769647114564,7.2156,124.91,124.86,1.97255625]
[1769647114864,10.49273152,124.91,124.87,1.97255625]
[1769647115268,10.49273152,124.91,124.86,1.97255625]
[1769647115959,3.27713152,124.9,124.86,1.97255625]
[1769647116561,10.49333152,124.9,124.85,1.97255625]
[1769647120769,10.49393152,124.89,124.85,1.97255625]
[1769647120962,3.27713152,124.88,124.82,9.19275625]
[1769647121661,3.27713152,124.88,124.82,12.63750128]
[1769647122274,10.49453152,124.88,124.82,12.63750128]
[1769647122571,3.27713152,124.88,124.82,5.41730128]
[1769647122767,3.27713152,124.87,124.81,7.2213]
[1769647122977,3.27713152,124.87,124.81,9.19385625]
[1769647123774,5.24968777,124.87,124.81,7.2213]
[1769647123976,3.27713152,124.86,124.81,7.2213]
[1769647125272,3.27713152,124.86,124.81,9.19385625]
[1769647126969,10.49573152,124.86,124.81,1.97255625]
[1769647127176,10.49573152,124.86,124.8,3.44474503]
[1769647127177,12.46828777,124.86,124.8,5.41730128]
[1769647128172,10.49573152,124.86,124.8,5.41730128]
[1769647128474,10.49573152,124.86,124.8,12.63900128]
[1769647129979,12.46828777,124.86,124.8,12.63900128]
[1769647132978,10.49573152,124.86,124.8,12.63900128]
[1769647133879,3.27713152,124.85,124.8,12.63900128]
[1769647138391,12.70615103,124.87,124.81,5.4526578]
[1769647139284,3.51559478,124.86,124.81,5.4526578]
[1769647141894,10.73419478,124.86,124.81,3.48010155]
[1769647143298,3.51559478,124.86,124.81,10.70140155]
[1769647143595,3.51559478,124.86,124.81,12.6739578]
[1769647145594,1.97255625,124.88,124.82,12.6733578]
[1769647145595,10.73299478,124.88,124.82,12.6733578]
[1769647146200,3.51559478,124.87,124.82,12.6733578]
[1769647148201,3.51559478,124.89,124.84,3.48010155]
[1769647148398,10.73239478,124.89,124.85,1.97255625]
[1769647152706,7.2168,124.89,124.85,1.97255625]
[1769647155310,7.2162,124.9,124.86,1.97255625]
[1769647155509,10.73179478,124.9,124.86,1.97255625]
[1769647157305,10.73179478,124.9,124.85,1.97255625]
[1769647159807,10.73179478,124.9,124.84,37.26838307]
[1769647160514,10.73179478,124.9,124.85,1.97255625]
[1769647162116,3.51559478,124.88,124.82,5.4526578]
[1769647162617,10.73409478,124.86,124.8,36.6715799]
[1769647163714,12.70665103,124.86,124.8,34.69902365]
[1769647165020,3.30238401,124.85,124.8,34.69902365]
[1769647165213,10.52148401,124.85,124.79,1.97255625]
[1769647165518,3.30238401,124.84,124.78,12.66892665]
[1769647165918,3.30238401,124.84,124.78,36.67029512]
[1769647166322,10.52208401,124.84,124.78,36.67029512]
[1769647168326,10.52208401,124.84,124.79,3.46442507]
[1769647168710,10.52208401,124.84,124.79,5.43698132]
[1769647169620,10.52208401,124.84,124.79,3.46442507]
[1769647170723,7.2191,124.85,124.8,3.46442507]
[1769647170924,10.60468601,124.85,124.8,5.43698132]
[1769647172027,3.38558601,124.85,124.8,5.43698132]
[1769647173627,3.38558601,124.85,124.8,5.43888431]
[1769647175321,3.38558601,124.85,124.8,7.2218]
[1769647175625,5.36004525,124.87,124.81,5.43888431]
[1769647175821,3.38558601,124.87,124.82,1.97445924]
[1769647176024,10.60268601,124.89,124.83,1.97445924]
[1769647176427,10.60268601,124.89,124.84,1.97445924]
[1769647177127,3.38558601,124.88,124.84,1.97445924]
[1769647177323,3.38558601,124.88,124.83,1.97445924]
[1769647177520,3.38558601,124.88,124.84,1.97445924]
[1769647180226,10.60168601,124.91,124.86,1.97445924]
[1769647180431,10.60168601,124.91,124.87,1.97445924]
[1769647182429,10.60168601,124.91,124.85,7.219]
[1769647182430,10.60178601,124.9,124.86,1.97445924]
[1769647182625,10.60178601,124.9,124.85,9.19345924]
[1769647185733,10.60178601,124.9,124.85,1.97445924]
[1769647186835,10.60238601,124.89,124.84,3.46442507]
[1769647187134,10.60238601,124.89,124.84,5.43888431]
[1769647193547,10.60238601,124.89,124.85,1.97445924]
[1769647194846,7.2168,124.89,124.85,5.46655078]
[1769647195440,7.2168,124.89,124.85,3.49209154]
[1769647195640,10.71014877,124.89,124.84,1.97445924]
[1769647198547,10.71014877,124.89,124.84,5.46655078]
[1769647198749,10.71014877,124.89,124.85,1.97445924]
[1769647199246,3.49334877,124.91,124.85,5.46655078]
[1769647199550,3.49334877,124.93,124.89,1.97445924]
[1769647199849,3.49334877,124.95,124.9,1.97445924]
[1769647201452,10.70684877,124.95,124.9,1.97445924]
[1769647202449,3.49334877,124.95,124.91,1.97445924]
[1769647202654,3.49334877,124.97,124.92,1.97445924]
[1769647204650,3.49334877,124.97,124.93,1.97445924]
[1769647205550,3.49334877,124.95,124.9,1.97445924]
[1769647205754,3.49334877,124.95,124.91,1.97445924]
[1769647206558,3.49334877,124.95,124.9,5.46655078]
[1769647207649,3.49334877,124.95,124.9,3.49209154]
[1769647207858,3.49334877,124.95,124.91,1.97445924]
[1769647208061,3.49334877,124.97,124.92,1.97445924]
[1769647209058,3.49334877,124.96,124.92,1.97445924]
[1769647209260,3.49334877,124.96,124.91,5.46655078]
[1769647216273,10.70624877,124.96,124.91,3.49209154]
[1769647221682,10.70664877,124.95,124.9,1.97445924]
[1769647222182,10.70664877,124.95,124.89,12.68325078]
[1769647222482,3.49334877,124.93,124.88,1.97445924]
[1769647223075,3.49334877,124.93,124.88,9.19175924]
[1769647223277,3.49334877,124.93,124.88,5.46655078]
[1769647223570,3.49334877,124.93,124.88,3.49209154]
[1769647224880,5.46780801,124.93,124.88,3.49209154]
[1769647225087,5.46780801,124.93,124.88,10.70929154]
[1769647226882,5.34389282,124.92,124.86,3.34771813]
[1769647227184,1.97445924,124.91,124.86,3.34771813]
[1769647227876,5.34389282,124.91,124.86,3.34771813]
[1769647233587,5.34203535,124.91,124.86,3.34771813]
[1769647235091,1.97260177,124.9,124.86,3.34771813]
[1769647235492,1.97260177,124.89,124.84,10.4631955]
[1769647235695,1.97260177,124.88,124.84,3.2435955]
[1769647236800,5.2599867,124.88,124.82,10.4642955]
[1769647237387,5.2599867,124.88,124.83,10.4637955]
[1769647242587,1.97260177,124.87,124.83,3.2435955]
[1769647255707,5.2599867,124.88,124.83,3.2435955]
[1769647256908,12.4775867,124.88,124.83,3.2435955]
[1769647257203,5.51119523,124.87,124.82,7.2208]
[1769647258504,3.53859346,124.85,124.81,10.77125843]
[1769647258801,3.53859346,124.85,124.8,3.54995843]
[1769647260406,3.53859346,124.85,124.8,10.77185843]
[1769647261612,3.53859346,124.85,124.8,12.7444602]
[1769647262301,3.53859346,124.85,124.78,10.77245843]
[1769647262302,3.53859346,124.84,124.78,10.77245843]
[1769647262606,5.51119523,124.84,124.78,12.7450602]
[1769647263404,126.6874,124.9,124.8,5.5225602]
[1769647263405,3.53859346,124.86,124.8,5.5225602]
[1769647264301,3.53859346,124.86,124.8,12.7439602]
[1769647264716,3.53859346,124.86,124.81,1.97260177]
[1769647265600,3.53859346,124.88,124.84,1.97260177]
[1769647266206,3.53859346,124.88,124.83,3.54995843]
[1769647266207,3.53859346,124.92,124.87,1.97260177]
[1769647266705,3.53859346,124.92,124.88,1.97260177]
[1769647268305,3.53859346,124.92,124.89,1.97260177]
[1769647268507,3.53859346,124.94,124.9,1.97260177]
[1769647269118,3.53859346,124.94,124.91,1.97260177]
[1769647270713,3.53859346,124.94,124.9,1.97260177]
[1769647272717,3.53859346,124.93,124.89,1.97260177]
[1769647275010,10.75309346,124.93,124.89,1.97260177]
[1769647275419,3.53859346,124.92,124.87,3.54995843]
[1769647275616,3.53859346,124.92,124.88,1.97260177]
[1769647277416,3.53859346,124.92,124.87,3.54995843]
[1769647278318,10.75369346,124.92,124.87,3.54995843]
[1769647280522,10.75369346,124.92,124.86,1.97260177]
[1769647280523,3.53859346,124.91,124.86,1.97260177]
[1769647280712,12.72699523,124.91,124.85,5.5225602]
[1769647281412,12.72699523,124.91,124.85,12.7415602]
[1769647282420,10.75439346,124.91,124.85,12.7415602]
[1769647283019,3.53859346,124.91,124.85,12.7415602]
[1769647289130,5.51119523,124.91,124.85,12.7415602]
[1769647291328,5.51119523,124.91,124.86,3.46476885]
[1769647291523,3.39775149,124.93,124.88,5.43737062]
[1769647291728,5.37035326,124.95,124.89,5.43737062]
[1769647291930,3.39775149,124.95,124.89,12.65397062]
[1769647293130,5.37035326,124.95,124.89,12.65397062]
[1769647293428,5.37035326,124.95,124.89,10.68136885]
[1769647293630,5.36930454,124.95,124.89,10.68136885]
[1769647294026,12.58280454,124.95,124.89,10.68136885]
[1769647295131,1.97155305,124.94,124.89,10.68136885]
[1769647297730,12.58280454,124.95,124.89,10.68136885]
[1769647297930,7.2139,124.94,124.89,3.46476885]
[1769647298229,9.18545305,124.94,124.89,3.46476885]
[1769647298531,12.58320454,124.94,124.89,3.46476885]
[1769647300430,12.58320454,124.94,124.88,10.68206885]
[1769647300431,3.39775149,124.93,124.88,10.68206885]
[1769647303431,12.58390454,124.93,124.88,10.68206885]
[1769647303829,12.58390454,124.93,124.88,3.46476885]
[1769647304230,12.58390454,124.93,124.87,9.18935305]
[1769647304434,12.58390454,124.93,124.87,7.2178]
[1769647305436,12.58440454,124.92,124.86,10.68316885]
[1769647305738,12.58440454,124.92,124.86,12.6547219]
[1769647307839,12.58440454,124.92,124.86,10.68316885]
[1769647309432,10.61285149,124.92,124.86,12.6547219]
[1769647309637,3.39775149,124.94,124.89,3.46476885]
[1769647309832,3.39775149,124.94,124.89,5.4363219]
[1769647310235,3.39775149,124.94,124.89,3.46476885]
[1769647310437,3.39775149,124.94,124.89,5.4363219]
[1769647311440,10.61165149,124.94,124.89,3.46476885]
[1769647312139,12.58320454,124.94,124.89,3.46476885]
[1769647318045,12.5718366,124.93,124.87,12.45010027]
[1769647319444,12.5718366,124.93,124.87,10.47854722]
[1769647320442,10.60028355,124.93,124.88,3.26064722]
[1769647321833,3.38538355,124.92,124.86,12.45060027]
[1769647322039,3.38538355,124.92,124.86,10.47904722]
[1769647322339,3.38538355,124.92,124.86,12.45060027]
[1769647322533,10.60038355,124.92,124.86,12.45060027]
[1769647323647,3.38538355,124.9,124.85,7.219]
[1769647323847,5.3569366,124.9,124.84,3.26064722]
[1769647324044,3.38538355,124.89,124.84,3.26064722]
[1769647325745,3.38538355,124.91,124.85,5.23220027]
[1769647325952,3.38538355,124.91,124.86,3.26064722]
[1769647326951,3.38538355,124.89,124.82,3.26064722]
[1769647327149,117.93747618,124.93,124.82,5.23220027]
[1769647327150,5.3569366,124.88,124.82,5.23220027]
[1769647328443,1.97155305,124.87,124.82,3.26064722]
[1769647328743,7.2164,124.9,124.8,3.26064722]
[1769647328744,5.3569366,124.86,124.8,3.26064722]
[1769647329452,3.38538355,124.84,124.78,3.26064722]
[1769647329756,5.3569366,124.83,124.78,3.26064722]
[1769647330053,3.38538355,124.83,124.78,3.26064722]
[1769647330557,3.38538355,124.83,124.78,5.23220027]
[1769647330750,3.38538355,124.83,124.78,3.26064722]
[1769647330952,3.38538355,124.83,124.78,5.23220027]
[1769647332549,3.38538355,124.83,124.76,3.26064722]
[1769647332751,5.3569366,124.83,124.77,3.26064722]
[1769647334343,5.3569366,124.83,124.77,5.23220027]
[1769647334748,5.3569366,124.83,124.77,3.26064722]
[1769647334954,5.3569366,124.83,124.77,5.23220027]
[1769647335647,5.3569366,124.82,124.77,3.26064722]
[1769647336354,5.3569366,124.82,124.75,12.45680027]
[1769647336950,7.2203,124.83,124.72,45.96037568]
[1769647336951,5.3569366,124.79,124.72,45.96037568]
[1769647337257,3.38538355,124.78,124.72,29.2210229]
[1769647337443,3.38538355,124.77,124.72,3.26064722]
[1769647337850,3.38538355,124.77,124.71,5.23220027]
[1769647338557,1.97155305,124.78,124.72,3.26064722]
[1769647338858,5.3569366,124.79,124.72,5.23220027]
[1769647339046,3.38538355,124.78,124.72,5.23220027]
[1769647342048,3.38538355,124.78,124.72,3.26064722]
[1769647342353,3.38538355,124.78,124.72,5.23220027]
[1769647342551,3.38538355,124.78,124.73,3.26064722]
[1769647342756,3.38538355,124.78,124.73,5.23220027]
[1769647345052,3.41675138,124.8,124.74,1.97155305]
[1769647346258,3.41675138,124.8,124.75,1.97155305]
[1769647346452,3.41675138,124.8,124.74,3.36349012]
[1769647346656,3.41675138,124.77,124.71,20.0]
[1769647346869,3.41675138,124.77,124.71,5.33504317]
[1769647347158,3.41675138,124.77,124.72,5.33504317]
[1769647348852,3.41675138,124.77,124.72,3.36349012]
[1769647349756,3.28390229,124.76,124.7,5.27130501]
[1769647349958,3.28390229,124.74,124.68,5.27130501]
[1769647350258,3.28390229,124.74,124.69,1.97155305]
[1769647350461,3.28390229,124.74,124.68,5.27130501]
[1769647351160,3.28390229,124.74,124.69,1.97155305]
[1769647352358,3.28390229,124.74,124.68,1.97155305]
[1769647353858,3.28390229,124.73,124.67,5.27130501]
[1769647354062,3.28390229,124.73,124.68,1.97155305]
[1769647354653,3.28390229,124.73,124.67,1.97155305]
[1769647355765,3.28390229,124.73,124.67,1.97854768]
[1769647356164,3.28390229,124.73,124.68,1.97854768]
[1769647356363,3.28390229,124.73,124.67,1.97854768]
[1769647356760,3.28390229,124.73,124.69,1.97854768]
[1769647359565,3.28390229,124.73,124.68,1.97854768]
[1769647359764,3.28390229,124.73,124.69,1.97854768]
[1769647361369,3.28390229,124.73,124.68,7.2288]
[1769647361666,3.28390229,124.73,124.69,1.97854768]
[1769647362561,10.50890229,124.75,124.7,1.97854768]
[1769647363663,10.50890229,124.75,124.68,10.52855196]
[1769647363664,10.50890229,124.75,124.69,1.97854768]
[1769647364867,10.50890229,124.75,124.68,10.52855196]
[1769647365068,10.50890229,124.75,124.69,1.97854768]
[1769647365869,3.28390229,124.72,124.68,1.97854768]
[1769647368664,3.28390229,124.72,124.69,1.97854768]
[1769647369374,3.28390229,124.72,124.68,1.97854768]
[1769647371071,7.226,124.73,124.69,1.97854768]
[1769647371371,7.2254,124.74,124.69,1.97854768]
[1769647371566,10.50930229,124.74,124.69,1.97854768]
[1769647371972,10.50930229,124.74,124.68,10.52855196]
[1769647372172,10.50930229,124.74,124.69,1.97854768]
[1769647372572,10.50930229,124.74,124.69,10.52795196]
[1769647372573,3.28390229,124.74,124.69,10.52795196]
[1769647372774,3.28390229,124.74,124.7,1.97854768]
[1769647375069,1.97854768,124.77,124.7,1.97854768]
[1769647375269,3.35596963,124.76,124.7,1.97854768]
[1769647376474,10.58046963,124.76,124.7,1.97854768]
[1769647377370,3.35596963,124.76,124.72,1.97854768]
[1769647377571,3.35596963,124.76,124.66,132.4644]
[1769647377572,3.35596963,124.76,124.66,20.0]
[1769647377777,3.35596963,124.75,124.69,1.97854768]
[1769647377972,10.58206963,124.73,124.68,1.97854768]
[1769647380274,10.58266963,124.72,124.68,1.97854768]
[1769647380478,10.58266963,124.72,124.67,5.41565115]
[1769647380774,3.35596963,124.72,124.67,1.97854768]
[1769647382368,3.35596963,124.72,124.68,1.97854768]
[1769647382769,3.35596963,124.72,124.67,5.41565115]
[1769647384174,10.58266963,124.72,124.67,5.41565115]
[1769647386781,10.58266963,124.72,124.68,1.97854768]
[1769647386984,10.58176963,124.74,124.68,1.97854768]
[1769647387684,3.35596963,124.73,124.68,1.97854768]
[1769647388184,3.35596963,124.73,124.68,9.20744768]
[1769647388775,10.58196963,124.73,124.68,9.20744768]
[1769647388978,3.35596963,124.73,124.68,1.97854768]
[1769647389277,7.2267,124.72,124.68,1.97854768]
[1769647389478,7.2267,124.72,124.67,5.41565115]
[1769647391086,10.58266963,124.72,124.67,5.41565115]
[1769647393087,7.2274,124.71,124.67,1.97854768]
[1769647394289,10.58336963,124.71,124.66,1.97854768]
[1769647394994,7.2277,124.7,124.66,1.97854768]
[1769647395488,3.35596963,124.71,124.66,1.97854768]
[1769647395992,10.58316963,124.71,124.66,1.97854768]
[1769647398491,10.58316963,124.71,124.67,1.97854768]
[1769647408105,3.26600833,124.7,124.67,1.97854768]
[1769647408298,3.26600833,124.7,124.65,10.66760347]
[1769647408299,3.26600833,124.7,124.66,1.97854768]
[1769647408695,3.26600833,124.7,124.65,10.66760347]
[1769647409006,3.26600833,124.7,124.66,1.97854768]
[1769647413408,3.26600833,124.7,124.65,12.64615115]
[1769647417610,3.26600833,124.7,124.65,12.64676039]
[1769647418000,3.45831298,124.68,124.63,3.22549686]
[1769647419003,3.45831298,124.7,124.64,5.20465378]
[1769647419907,3.45831298,124.7,124.65,1.97915692]
[1769647420308,3.45831298,124.7,124.66,1.97915692]
[1769647420610,10.68491298,124.72,124.66,5.20465378]
[1769647420908,3.45831298,124.72,124.67,1.97915692]
[1769647421698,3.45831298,124.72,124.67,9.20845692]
[1769647422404,3.45831298,124.72,124.66,5.20465378]
[1769647423314,5.4374699,124.72,124.66,12.43465378]
[1769647423509,3.45831298,124.71,124.66,10.45549686]
[1769647424210,3.45831298,124.7,124.64,12.43535378]
[1769647425304,10.68611298,124.7,124.64,12.43535378]
[1769647426409,3.45831298,124.69,124.64,12.43535378]
[1769647426908,3.45831298,124.69,124.62,14.20468918]
[1769647426909,3.45831298,124.68,124.62,14.20468918]
[1769647427109,3.45831298,124.68,124.63,1.97915692]
[1769647427813,3.45831298,124.67,124.62,10.97919232]
[1769647428013,3.45831298,124.67,124.62,12.95834924]
[1769647428413,3.45831298,124.67,124.62,18.21149232]
[1769647428615,3.45831298,124.67,124.62,10.97919232]
[1769647429112,3.45831298,124.67,124.62,12.95834924]
[1769647429319,3.45831298,124.67,124.62,20.19054924]
[1769647429809,10.68671298,124.69,124.63,9.21095692]
[1769647430216,10.68671298,124.69,124.64,1.97915692]
[1769647432916,10.68671298,124.69,124.63,9.21095692]